[Event "*** Biggest EVER Titled Tuesday"]
[Site "Chess.com"]
[Date "2018.04.17"]
[Round "4"]
[White "schoolmeester"]
[Black "Tesla37"]
[Result "1/2-1/2"]
[WhiteElo "2676"]
[BlackElo "2588"]
[TimeControl "180+2"]
[EndTime "13:56:11 PDT"]
[Termination "Game drawn - insufficient material"]

1. e4 {[%clk 0:03:01.9]} 1... c5 {[%clk 0:03:00.3]} 2. Nf3 {[%clk 0:03:02.1]}
2... e6 {[%clk 0:03:01.3]} 3. d4 {[%clk 0:03:01.9]} 3... cxd4 {[%clk 0:03:02.2]}
4. Nxd4 {[%clk 0:03:02.4]} 4... Nc6 {[%clk 0:03:03.6]} 5. Nc3 {[%clk 0:03:03.1]}
5... a6 {[%clk 0:03:04.8]} 6. Nxc6 {[%clk 0:03:00.8]} 6... bxc6 {[%clk
0:03:05.2]} 7. Bd3 {[%clk 0:03:01.4]} 7... d5 {[%clk 0:03:05.9]} 8. Qe2 {[%clk
0:03:00.1]} 8... Nf6 {[%clk 0:03:05.5]} 9. O-O {[%clk 0:02:57.4]} 9... Be7
{[%clk 0:03:05.8]} 10. e5 {[%clk 0:02:54.8]} 10... Nd7 {[%clk 0:03:05.8]} 11.
Na4 {[%clk 0:02:54.1]} 11... Qc7 {[%clk 0:02:53.6]} 12. f4 {[%clk 0:02:53.2]}
12... c5 {[%clk 0:02:49.3]} 13. c4 {[%clk 0:02:52]} 13... d4 {[%clk 0:02:50.3]}
14. Be4 {[%clk 0:02:46.6]} 14... Rb8 {[%clk 0:02:49.8]} 15. b3 {[%clk
0:02:41.6]} 15... O-O {[%clk 0:02:49]} 16. Bd2 {[%clk 0:02:34.5]} 16... g6
{[%clk 0:02:47.9]} 17. Rae1 {[%clk 0:02:26.3]} 17... Bb7 {[%clk 0:02:43.7]} 18.
Rf3 {[%clk 0:02:20.1]} 18... Rfc8 {[%clk 0:02:33.9]} 19. Rh3 {[%clk 0:02:11.8]}
19... Bxe4 {[%clk 0:02:33.3]} 20. Qxe4 {[%clk 0:02:11.7]} 20... Qc6 {[%clk
0:02:34.7]} 21. Qe2 {[%clk 0:02:10.7]} 21... Bf8 {[%clk 0:02:22]} 22. Rf1 {[%clk
0:01:59.1]} 22... Bg7 {[%clk 0:02:22.5]} 23. Nb2 {[%clk 0:01:33.7]} 23... Re8
{[%clk 0:02:21.2]} 24. Nd3 {[%clk 0:01:31.5]} 24... Ra8 {[%clk 0:02:19.4]} 25.
Ba5 {[%clk 0:01:31.7]} 25... Ra7 {[%clk 0:02:14.3]} 26. Rhf3 {[%clk 0:01:30.3]}
26... Bf8 {[%clk 0:02:08.6]} 27. g4 {[%clk 0:01:25.8]} 27... Bg7 {[%clk
0:02:08]} 28. h4 {[%clk 0:01:23.1]} 28... f6 {[%clk 0:02:08.1]} 29. h5 {[%clk
0:01:16.1]} 29... f5 {[%clk 0:02:06.8]} 30. gxf5 {[%clk 0:01:06.1]} 30... exf5
{[%clk 0:02:07]} 31. hxg6 {[%clk 0:01:04.4]} 31... hxg6 {[%clk 0:02:07.4]} 32.
Rg3 {[%clk 0:01:02.7]} 32... Nf8 {[%clk 0:02:07.1]} 33. Rf2 {[%clk 0:00:55.3]}
33... Kf7 {[%clk 0:01:59.4]} 34. Rfg2 {[%clk 0:00:54.4]} 34... Raa8 {[%clk
0:01:41.2]} 35. Kf2 {[%clk 0:00:41.4]} 35... Rac8 {[%clk 0:01:40]} 36. Ke1
{[%clk 0:00:36]} 36... Re6 {[%clk 0:01:37.5]} 37. Kd1 {[%clk 0:00:34.8]} 37...
Qe4 {[%clk 0:01:38.3]} 38. Rg1 {[%clk 0:00:29.6]} 38... Nd7 {[%clk 0:01:35.8]}
39. Qg2 {[%clk 0:00:21.3]} 39... Qxg2 {[%clk 0:01:20.1]} 40. R1xg2 {[%clk
0:00:23.2]} 40... Rh8 {[%clk 0:01:20.9]} 41. Bd2 {[%clk 0:00:24]} 41... Bf8
{[%clk 0:01:19.3]} 42. Ne1 {[%clk 0:00:18.4]} 42... Be7 {[%clk 0:01:19.4]} 43.
Nd3 {[%clk 0:00:17.3]} 43... Rh1+ {[%clk 0:01:18.3]} 44. Rg1 {[%clk 0:00:17.9]}
44... Rh2 {[%clk 0:01:15.1]} 45. R3g2 {[%clk 0:00:18.8]} 45... Rh8 {[%clk
0:01:12.5]} 46. Kc2 {[%clk 0:00:19.7]} 46... Nb8 {[%clk 0:01:05.9]} 47. a3
{[%clk 0:00:19.7]} 47... Rh3 {[%clk 0:00:57.9]} 48. b4 {[%clk 0:00:19.7]} 48...
cxb4 {[%clk 0:00:58.9]} 49. axb4 {[%clk 0:00:21.6]} 49... Nd7 {[%clk 0:00:53.1]}
50. Rg3 {[%clk 0:00:19.8]} 50... Rh2 {[%clk 0:00:52.8]} 51. R1g2 {[%clk
0:00:19.8]} 51... Rh8 {[%clk 0:00:53.1]} 52. Kb2 {[%clk 0:00:19.1]} 52... Rc6
{[%clk 0:00:53.1]} 53. c5 {[%clk 0:00:18.9]} 53... Re6 {[%clk 0:00:49.3]} 54.
Kc2 {[%clk 0:00:18]} 54... a5 {[%clk 0:00:49.8]} 55. bxa5 {[%clk 0:00:19.9]}
55... Nxc5 {[%clk 0:00:50]} 56. Nxc5 {[%clk 0:00:21.1]} 56... Bxc5 {[%clk
0:00:51]} 57. Rb3 {[%clk 0:00:22.7]} 57... Rc6 {[%clk 0:00:48.6]} 58. Kd1 {[%clk
0:00:20.5]} 58... Be7 {[%clk 0:00:46.1]} 59. Ke2 {[%clk 0:00:19.2]} 59... Rc2
{[%clk 0:00:36.7]} 60. Kd3 {[%clk 0:00:19.6]} 60... Ra2 {[%clk 0:00:36.4]} 61.
Rb7 {[%clk 0:00:20.9]} 61... Rh3+ {[%clk 0:00:29.8]} 62. Kc4 {[%clk 0:00:20.6]}
62... Ke8 {[%clk 0:00:22.1]} 63. Rxg6 {[%clk 0:00:18.4]} 63... Rxd2 {[%clk
0:00:22.4]} 64. Re6 {[%clk 0:00:18.5]} 64... Rh7 {[%clk 0:00:22.7]} 65. a6
{[%clk 0:00:19.4]} 65... Ra2 {[%clk 0:00:20.9]} 66. a7 {[%clk 0:00:20.1]} 66...
Ra4+ {[%clk 0:00:20.7]} 67. Kb5 {[%clk 0:00:19.3]} 67... Ra1 {[%clk 0:00:20.2]}
68. Ra6 {[%clk 0:00:15.6]} 68... Rb1+ {[%clk 0:00:12.1]} 69. Kc4 {[%clk
0:00:16.4]} 69... Rc1+ {[%clk 0:00:13.2]} 70. Kd5 {[%clk 0:00:17.3]} 70... Rc5+
{[%clk 0:00:06.3]} 71. Ke6 {[%clk 0:00:17.8]} 71... Rh6+ {[%clk 0:00:06.2]} 72.
Kxf5 {[%clk 0:00:19.1]} 72... Rxa6 {[%clk 0:00:07.6]} 73. Rb8+ {[%clk
0:00:19.8]} 73... Kf7 {[%clk 0:00:08.7]} 74. a8=Q {[%clk 0:00:21.3]} 74... Rxa8
{[%clk 0:00:09.7]} 75. Rxa8 {[%clk 0:00:23.2]} 75... Rd5 {[%clk 0:00:10]} 76.
Ke4 {[%clk 0:00:24.2]} 76... Rd7 {[%clk 0:00:10.5]} 77. f5 {[%clk 0:00:24.8]}
77... Kg7 {[%clk 0:00:10.1]} 78. f6+ {[%clk 0:00:25.5]} 78... Bxf6 {[%clk
0:00:11.1]} 79. exf6+ {[%clk 0:00:27.4]} 79... Kxf6 {[%clk 0:00:12.5]} 80. Ra5
{[%clk 0:00:28.1]} 80... d3 {[%clk 0:00:13.3]} 81. Ra1 {[%clk 0:00:29.1]} 81...
d2 {[%clk 0:00:14.4]} 82. Rd1 {[%clk 0:00:30.4]} 82... Kg5 {[%clk 0:00:15.1]}
83. Ke3 {[%clk 0:00:31.9]} 83... Kg4 {[%clk 0:00:16.4]} 84. Rxd2 {[%clk
0:00:33.3]} 84... Rxd2 {[%clk 0:00:16.5]} 85. Kxd2 {[%clk 0:00:35.2]} 1/2-1/2

[Event "*** Biggest EVER Titled Tuesday"]
[Site "Chess.com"]
[Date "2018.04.17"]
[Round "4"]
[White "kikydu96"]
[Black "fyall777"]
[Result "1/2-1/2"]
[WhiteElo "2350"]
[BlackElo "2361"]
[TimeControl "180+2"]
[EndTime "13:56:28 PDT"]
[Termination "Game drawn - timeout vs insufficient material"]

1. e4 {[%clk 0:03:01.9]} 1... e5 {[%clk 0:03:00]} 2. Nf3 {[%clk 0:02:58.7]} 2...
Nc6 {[%clk 0:03:01.1]} 3. Bc4 {[%clk 0:02:57]} 3... Be7 {[%clk 0:03:00.9]} 4. d4
{[%clk 0:02:50.4]} 4... d6 {[%clk 0:03:00.4]} 5. Nc3 {[%clk 0:02:40.5]} 5... Nf6
{[%clk 0:02:58.1]} 6. h3 {[%clk 0:02:37.4]} 6... O-O {[%clk 0:02:53.7]} 7. O-O
{[%clk 0:02:34.3]} 7... Nxe4 {[%clk 0:02:54.6]} 8. Nxe4 {[%clk 0:02:28.7]} 8...
d5 {[%clk 0:02:54.5]} 9. Bd3 {[%clk 0:01:50.6]} 9... dxe4 {[%clk 0:02:53.4]} 10.
Bxe4 {[%clk 0:01:52.5]} 10... Nxd4 {[%clk 0:02:37.9]} 11. Nxe5 {[%clk
0:01:45.5]} 11... c6 {[%clk 0:02:22.7]} 12. c3 {[%clk 0:01:28.7]} 12... Bf5
{[%clk 0:02:06.1]} 13. Qe1 {[%clk 0:01:14.6]} 13... Bxe4 {[%clk 0:01:57.7]} 14.
Qxe4 {[%clk 0:01:14.6]} 14... Ne6 {[%clk 0:01:56.3]} 15. Be3 {[%clk 0:01:13]}
15... Qa5 {[%clk 0:01:39.5]} 16. Rfe1 {[%clk 0:00:57.7]} 16... Rad8 {[%clk
0:01:22.5]} 17. Nxf7 {[%clk 0:00:27]} 17... Kxf7 {[%clk 0:01:22.7]} 18. Bb6
{[%clk 0:00:16.4]} 18... Qd5 {[%clk 0:01:17.8]} 19. Bxd8 {[%clk 0:00:10.9]}
19... Qxe4 {[%clk 0:01:17.9]} 20. Rxe4 {[%clk 0:00:11]} 20... Rxd8 {[%clk
0:01:17.9]} 21. Rae1 {[%clk 0:00:11.4]} 21... Rd6 {[%clk 0:01:19.2]} 22. f4
{[%clk 0:00:12.6]} 22... Bf6 {[%clk 0:01:18.8]} 23. g4 {[%clk 0:00:12.9]} 23...
Nc5 {[%clk 0:01:18.6]} 24. R4e2 {[%clk 0:00:12.2]} 24... Nd3 {[%clk 0:01:13.4]}
25. Rd1 {[%clk 0:00:13.4]} 25... Nxf4 {[%clk 0:01:08.7]} 26. Rxd6 {[%clk
0:00:10.8]} 26... Nxe2+ {[%clk 0:01:08.6]} 27. Kf2 {[%clk 0:00:11.1]} 27... Nf4
{[%clk 0:01:02.8]} 28. Rd7+ {[%clk 0:00:12.2]} 28... Ke6 {[%clk 0:01:03.2]} 29.
Rxb7 {[%clk 0:00:12.7]} 29... Nxh3+ {[%clk 0:01:04.3]} 30. Kg3 {[%clk
0:00:12.9]} 30... Ng5 {[%clk 0:01:05.3]} 31. Rxa7 {[%clk 0:00:14.2]} 31... Ne4+
{[%clk 0:01:05.8]} 32. Kf3 {[%clk 0:00:14.8]} 32... Nd2+ {[%clk 0:01:04.7]} 33.
Ke2 {[%clk 0:00:12.6]} 33... Nc4 {[%clk 0:01:05.7]} 34. b3 {[%clk 0:00:12.9]}
34... Ne5 {[%clk 0:01:06.4]} 35. g5 {[%clk 0:00:12.1]} 35... Bxg5 {[%clk
0:01:06.8]} 36. Rxg7 {[%clk 0:00:13.3]} 36... h6 {[%clk 0:01:06.7]} 37. a4
{[%clk 0:00:14.2]} 37... Be7 {[%clk 0:01:07.6]} 38. Rh7 {[%clk 0:00:11.7]} 38...
Nf7 {[%clk 0:01:01]} 39. a5 {[%clk 0:00:11.8]} 39... Kf6 {[%clk 0:00:59.3]} 40.
b4 {[%clk 0:00:10.7]} 40... Bd8 {[%clk 0:00:59.8]} 41. a6 {[%clk 0:00:06.5]}
41... Bb6 {[%clk 0:00:59.9]} 42. Kd3 {[%clk 0:00:03.8]} 42... Kg6 {[%clk
0:00:58.8]} 43. Rxh6+ {[%clk 0:00:04.7]} 43... Kxh6 {[%clk 0:00:53.9]} 44. c4
{[%clk 0:00:05.9]} 44... Ne5+ {[%clk 0:00:50.1]} 45. Kc3 {[%clk 0:00:07.3]}
45... Kg6 {[%clk 0:00:51.3]} 46. c5 {[%clk 0:00:08.7]} 46... Ba7 {[%clk
0:00:50.1]} 47. b5 {[%clk 0:00:09.2]} 47... Bxc5 {[%clk 0:00:46]} 48. bxc6
{[%clk 0:00:09.2]} 48... Nxc6 {[%clk 0:00:45.2]} 49. Kc4 {[%clk 0:00:10.5]}
49... Ba7 {[%clk 0:00:41.2]} 50. Kd5 {[%clk 0:00:11]} 50... Nb4+ {[%clk
0:00:38.6]} 51. Kd6 {[%clk 0:00:12]} 51... Nxa6 {[%clk 0:00:39.3]} 52. Kd5
{[%clk 0:00:13.5]} 52... Kf6 {[%clk 0:00:38.7]} 53. Kd6 {[%clk 0:00:14.7]} 53...
Nb4 {[%clk 0:00:36.8]} 54. Kd7 {[%clk 0:00:14.3]} 54... Ke5 {[%clk 0:00:32.3]}
55. Kc7 {[%clk 0:00:15.6]} 55... Ke6 {[%clk 0:00:32.2]} 56. Kb7 {[%clk
0:00:16.3]} 56... Bc5 {[%clk 0:00:32.8]} 57. Kc7 {[%clk 0:00:17.3]} 57... Ke7
{[%clk 0:00:28.3]} 58. Kb7 {[%clk 0:00:16]} 58... Kd7 {[%clk 0:00:29]} 59. Kb8
{[%clk 0:00:17.1]} 59... Kc6 {[%clk 0:00:28.5]} 60. Ka8 {[%clk 0:00:15.1]} 60...
Nd5 {[%clk 0:00:28.5]} 61. Kb8 {[%clk 0:00:16.1]} 61... Nc7 {[%clk 0:00:29.4]}
62. Kc8 {[%clk 0:00:17.1]} 62... Ba7 {[%clk 0:00:30.6]} 63. Kd8 {[%clk
0:00:18.7]} 63... Nd5 {[%clk 0:00:27.1]} 64. Ke8 {[%clk 0:00:19.6]} 64... Kd6
{[%clk 0:00:23.6]} 65. Kf7 {[%clk 0:00:20.4]} 65... Bd4 {[%clk 0:00:20.9]} 66.
Kg6 {[%clk 0:00:21.2]} 66... Ke6 {[%clk 0:00:20.1]} 67. Kg5 {[%clk 0:00:22.2]}
67... Ne3 {[%clk 0:00:13.6]} 68. Kf4 {[%clk 0:00:23.2]} 68... Kd5 {[%clk
0:00:14.8]} 69. Kf3 {[%clk 0:00:24.1]} 69... Ke5 {[%clk 0:00:15.3]} 70. Kg3
{[%clk 0:00:23.9]} 70... Ke4 {[%clk 0:00:16]} 71. Kf2 {[%clk 0:00:25.3]} 71...
Ng4+ {[%clk 0:00:14.6]} 72. Kg3 {[%clk 0:00:26.6]} 72... Kf5 {[%clk 0:00:14.4]}
73. Kf3 {[%clk 0:00:26.8]} 73... Bc5 {[%clk 0:00:15.1]} 74. Kg3 {[%clk
0:00:27.8]} 74... Ne5 {[%clk 0:00:14.8]} 75. Kh3 {[%clk 0:00:26.8]} 75... Kf4
{[%clk 0:00:10.3]} 76. Kg2 {[%clk 0:00:26.6]} 76... Kg4 {[%clk 0:00:06.4]} 77.
Kh2 {[%clk 0:00:27.1]} 77... Kf3 {[%clk 0:00:06.1]} 78. Kh1 {[%clk 0:00:27.3]}
78... Be3 {[%clk 0:00:02.1]} 79. Kh2 {[%clk 0:00:28.3]} 79... Bf4+ {[%clk
0:00:02.9]} 80. Kh1 {[%clk 0:00:29.5]} 80... Ng4 {[%clk 0:00:02.8]} 81. Kg1
{[%clk 0:00:30.4]} 81... Nf2 {[%clk 0:00:02.3]} 82. Kf1 {[%clk 0:00:31.9]} 82...
Bh2 {[%clk 0:00:03.4]} 83. Ke1 {[%clk 0:00:33.6]} 1/2-1/2

[Event "*** Biggest EVER Titled Tuesday"]
[Site "Chess.com"]
[Date "2018.04.17"]
[Round "4"]
[White "BlackBoarder"]
[Black "ChessicallyInclined"]
[Result "1-0"]
[WhiteElo "2242"]
[BlackElo "2143"]
[TimeControl "180+2"]
[EndTime "13:56:38 PDT"]
[Termination "BlackBoarder won by resignation"]

1. e4 {[%clk 0:03:01.9]} 1... e5 {[%clk 0:02:59.8]} 2. Nf3 {[%clk 0:03:02.3]}
2... Nc6 {[%clk 0:02:59.9]} 3. d4 {[%clk 0:03:03.4]} 3... exd4 {[%clk
0:02:59.8]} 4. Bc4 {[%clk 0:03:04.4]} 4... Nf6 {[%clk 0:03:00.8]} 5. O-O {[%clk
0:03:05.1]} 5... Nxe4 {[%clk 0:02:58.6]} 6. Re1 {[%clk 0:03:06]} 6... d5 {[%clk
0:03:00.2]} 7. Bxd5 {[%clk 0:03:06.9]} 7... Qxd5 {[%clk 0:03:02.1]} 8. Nc3
{[%clk 0:03:08.1]} 8... Qd7 {[%clk 0:03:01.8]} 9. Nxe4 {[%clk 0:03:02.9]} 9...
Be7 {[%clk 0:03:02.1]} 10. Bg5 {[%clk 0:02:40.7]} 10... O-O {[%clk 0:02:58.9]}
11. Bxe7 {[%clk 0:02:40.5]} 11... Qxe7 {[%clk 0:02:59.8]} 12. Nxd4 {[%clk
0:02:31.4]} 12... Bd7 {[%clk 0:03:00.2]} 13. Nf3 {[%clk 0:00:56.9]} 13... Rad8
{[%clk 0:02:43.5]} 14. Qe2 {[%clk 0:00:54.2]} 14... Rfe8 {[%clk 0:02:36.8]} 15.
Qc4 {[%clk 0:00:26.5]} 15... Be6 {[%clk 0:02:29.3]} 16. Qc3 {[%clk 0:00:26.7]}
16... Qb4 {[%clk 0:02:23.6]} 17. a3 {[%clk 0:00:10.7]} 17... Qxc3 {[%clk
0:02:21.4]} 18. Nxc3 {[%clk 0:00:12.6]} 18... h6 {[%clk 0:02:10.4]} 19. Rad1
{[%clk 0:00:09.7]} 19... Bf5 {[%clk 0:02:08.6]} 20. Rxe8+ {[%clk 0:00:08]} 20...
Rxe8 {[%clk 0:02:07.5]} 21. Rd2 {[%clk 0:00:03.1]} 21... g5 {[%clk 0:01:44]} 22.
h3 {[%clk 0:00:03.7]} 22... Kg7 {[%clk 0:01:42.2]} 23. Kh2 {[%clk 0:00:05.1]}
23... f6 {[%clk 0:01:39.8]} 24. Nd5 {[%clk 0:00:06.2]} 24... Rc8 {[%clk
0:01:24.1]} 25. Ne3 {[%clk 0:00:07.1]} 25... Be6 {[%clk 0:01:23.5]} 26. Nd4
{[%clk 0:00:08]} 26... Nxd4 {[%clk 0:01:23.9]} 27. Rxd4 {[%clk 0:00:09.9]} 27...
c5 {[%clk 0:01:18.7]} 28. Rd6 {[%clk 0:00:09.8]} 28... Kf7 {[%clk 0:01:19.3]}
29. g4 {[%clk 0:00:10.7]} 29... Ke7 {[%clk 0:01:18.1]} 30. Rd2 {[%clk
0:00:11.6]} 30... h5 {[%clk 0:01:17]} 31. Kg3 {[%clk 0:00:12.2]} 31... h4+
{[%clk 0:01:17.3]} 32. Kf3 {[%clk 0:00:10.7]} 32... c4 {[%clk 0:01:10.7]} 33. c3
{[%clk 0:00:10.5]} 33... Rc5 {[%clk 0:01:04.6]} 34. Re2 {[%clk 0:00:11.3]} 34...
Re5 {[%clk 0:00:58.6]} 35. Rd2 {[%clk 0:00:07.2]} 35... Bd7 {[%clk 0:00:51.4]}
36. Rd4 {[%clk 0:00:03.1]} 36... Bc6+ {[%clk 0:00:50.9]} 37. Ke2 {[%clk
0:00:04.6]} 37... b5 {[%clk 0:00:44.1]} 38. Kf1 {[%clk 0:00:06]} 38... Ke6
{[%clk 0:00:35.6]} 39. Nf5 {[%clk 0:00:06.6]} 39... Be4 {[%clk 0:00:22.3]} 40.
Rd6+ {[%clk 0:00:05.7]} 40... Kf7 {[%clk 0:00:23]} 41. Rd7+ {[%clk 0:00:05.9]}
41... Ke8 {[%clk 0:00:21.4]} 42. Rxa7 {[%clk 0:00:04.3]} 42... Bd3+ {[%clk
0:00:16.8]} 43. Kg2 {[%clk 0:00:05.3]} 43... Re2 {[%clk 0:00:17]} 44. Nd6+
{[%clk 0:00:05.7]} 44... Kd8 {[%clk 0:00:17.2]} 45. Nf7+ {[%clk 0:00:04.8]}
45... Kc8 {[%clk 0:00:17.2]} 46. Nd6+ {[%clk 0:00:05.8]} 46... Kd8 {[%clk
0:00:18.3]} 47. Nf7+ {[%clk 0:00:04.3]} 47... Ke8 {[%clk 0:00:18.3]} 48. Nd6+
{[%clk 0:00:05.2]} 48... Kf8 {[%clk 0:00:19.2]} 49. Rf7+ {[%clk 0:00:06]} 49...
Kg8 {[%clk 0:00:20.4]} 50. Rxf6 {[%clk 0:00:07.3]} 50... Rxb2 {[%clk 0:00:20.7]}
51. Nf5 {[%clk 0:00:03.8]} 51... Be4+ {[%clk 0:00:18.9]} 52. Kf1 {[%clk
0:00:03.5]} 52... Rb1+ {[%clk 0:00:15.8]} 53. Ke2 {[%clk 0:00:04.4]} 53... Bd3+
{[%clk 0:00:12.5]} 54. Ke3 {[%clk 0:00:05.6]} 54... Rh1 {[%clk 0:00:12.6]} 55.
Rg6+ {[%clk 0:00:06.5]} 55... Kf7 {[%clk 0:00:12.6]} 56. Rxg5 {[%clk 0:00:07.7]}
56... Rxh3+ {[%clk 0:00:13.2]} 57. Kf4 {[%clk 0:00:08.9]} 57... Rh1 {[%clk
0:00:11.7]} 58. Rg7+ {[%clk 0:00:06.8]} 58... Kf8 {[%clk 0:00:10.3]} 59. Rb7
{[%clk 0:00:06.6]} 59... h3 {[%clk 0:00:10.3]} 60. Ng3 {[%clk 0:00:07.6]} 60...
Rg1 {[%clk 0:00:10.1]} 61. Rxb5 {[%clk 0:00:07.3]} 61... h2 {[%clk 0:00:10.9]}
62. Rh5 {[%clk 0:00:08.3]} 62... Rg2 {[%clk 0:00:11.2]} 63. Kf3 {[%clk
0:00:09.5]} 63... Rg1 {[%clk 0:00:03.1]} 64. Rxh2 {[%clk 0:00:10.7]} 64... Rc1
{[%clk 0:00:04.5]} 65. Ne2 {[%clk 0:00:08.5]} 65... Bxe2+ {[%clk 0:00:04.9]} 66.
Kxe2 {[%clk 0:00:10.4]} 66... Rxc3 {[%clk 0:00:06.4]} 67. Rh8+ {[%clk 0:00:11]}
67... Kg7 {[%clk 0:00:07.3]} 68. Ra8 {[%clk 0:00:12]} 68... Rb3 {[%clk
0:00:07.4]} 69. f4 {[%clk 0:00:11.3]} 69... Kf6 {[%clk 0:00:07]} 70. Ra6+ {[%clk
0:00:11.6]} 70... Ke7 {[%clk 0:00:07.8]} 71. Rc6 {[%clk 0:00:12.3]} 71... Rxa3
{[%clk 0:00:08.4]} 72. Rxc4 {[%clk 0:00:12.8]} 72... Ra2+ {[%clk 0:00:09.7]} 73.
Ke3 {[%clk 0:00:13.5]} 73... Ra3+ {[%clk 0:00:11.2]} 74. Ke4 {[%clk 0:00:14.9]}
74... Rg3 {[%clk 0:00:11.5]} 75. g5 {[%clk 0:00:16.1]} 75... Kf7 {[%clk
0:00:13]} 76. Kf5 {[%clk 0:00:17.2]} 76... Re3 {[%clk 0:00:13.7]} 77. Rc7+
{[%clk 0:00:18.1]} 77... Kf8 {[%clk 0:00:15.2]} 78. Kf6 {[%clk 0:00:18.9]} 78...
Re8 {[%clk 0:00:14.9]} 79. g6 {[%clk 0:00:18.4]} 79... Kg8 {[%clk 0:00:16.3]}
80. f5 {[%clk 0:00:18.6]} 80... Ra8 {[%clk 0:00:17.1]} 81. Kg5 {[%clk
0:00:19.4]} 81... Rf8 {[%clk 0:00:16.9]} 82. f6 {[%clk 0:00:20.5]} 82... Ra8
{[%clk 0:00:18.5]} 83. Kh6 {[%clk 0:00:20]} 83... Rb8 {[%clk 0:00:19.4]} 84. Kg5
{[%clk 0:00:20.8]} 84... Rb5+ {[%clk 0:00:20]} 85. Kf4 {[%clk 0:00:22.1]} 85...
Rb4+ {[%clk 0:00:21.1]} 86. Ke5 {[%clk 0:00:23.3]} 86... Rb5+ {[%clk 0:00:22.3]}
87. Ke6 {[%clk 0:00:24.5]} 87... Rb6+ {[%clk 0:00:23.6]} 88. Ke7 {[%clk
0:00:24.9]} 88... Rb8 {[%clk 0:00:24.4]} 89. Rd7 {[%clk 0:00:25.7]} 89... Kh8
{[%clk 0:00:21.4]} 90. Rd8+ {[%clk 0:00:26.4]} 90... Rxd8 {[%clk 0:00:23]} 91.
Kxd8 {[%clk 0:00:28.1]} 91... Kg8 {[%clk 0:00:24.6]} 92. Ke8 {[%clk 0:00:29.4]}
92... Kh8 {[%clk 0:00:24.9]} 93. f7 {[%clk 0:00:29.6]} 1-0